[Event "Vastgota Open 2022"]
[Site "Skara stadshotell, Jarnvagsgatan 5, Skara, Sweden"]
[Date "2022.10.30"]
[Round "9.9"]
[White "Johansson, Ulf"]
[Black "Gustavsson, Ingemar"]
[Result "0-1"]
[TimeControl "30 minutes + 10 seconds per move from move one."]
[WhiteFideId "1701380"]
[BlackFideId "1723340"]
[WhiteElo "2183"]
[BlackElo "1903"]

1. Nf3 {[%clk 00:30:17]} {[%emt 00:00:02]} Nf6 {[%clk 00:30:18]} {[%emt
00:00:03]} 2. g3 {[%clk 00:30:26]} {[%emt 00:00:01]} b6 {[%clk 00:30:10]}
{[%emt 00:00:19]} 3. Bg2 {[%clk 00:30:34]} {[%emt 00:00:01]} Bb7 {[%clk
00:30:19]} {[%emt 00:00:02]} 4. b3 {[%clk 00:30:37]} {[%emt 00:00:07]} d6
{[%clk 00:30:01]} {[%emt 00:00:27]} 5. Bb2 {[%clk 00:30:44]} {[%emt 00:00:03]}
e5 {[%clk 00:30:09]} {[%emt 00:00:02]} 6. d3 {[%clk 00:30:48]} {[%emt
00:00:06]} Be7 {[%clk 00:30:07]} {[%emt 00:00:12]} 7. Nbd2 {[%clk 00:30:44]}
{[%emt 00:00:13]} O-O {[%clk 00:30:14]} {[%emt 00:00:04]} 8. O-O {[%clk
00:30:39]} {[%emt 00:00:14]} Nbd7 {[%clk 00:30:14]} {[%emt 00:00:10]} 9. a4
{[%clk 00:30:27]} {[%emt 00:00:23]} a5 {[%clk 00:30:20]} {[%emt 00:00:04]} 10.
e4 {[%clk 00:30:03]} {[%emt 00:00:34]} Nc5 {[%clk 00:29:13]} {[%emt 00:01:17]}
11. Nh4 {[%clk 00:29:55]} {[%emt 00:00:19]} g6 {[%clk 00:29:04]} {[%emt
00:00:20]} 12. f4 {[%clk 00:29:49]} {[%emt 00:00:15]} exf4 {[%clk 00:27:45]}
{[%emt 00:01:29]} 13. gxf4 {[%clk 00:28:16]} {[%emt 00:01:44]} Nfxe4 {[%clk
00:24:06]} {[%emt 00:03:50]} 14. Nxg6 {[%clk 00:28:08]} {[%emt 00:00:18]} hxg6
{[%clk 00:24:02]} {[%emt 00:00:13]} 15. dxe4 {[%clk 00:27:02]} {[%emt
00:01:16]} Bf6 {[%clk 00:23:57]} {[%emt 00:00:16]} 16. Qc1 {[%clk 00:22:40]}
{[%emt 00:04:32]} Re8 {[%clk 00:21:48]} {[%emt 00:02:18]} 17. Re1 {[%clk
00:22:42]} {[%emt 00:00:10]} Bxb2 {[%clk 00:17:24]} {[%emt 00:04:33]} 18. Qxb2
{[%clk 00:22:49]} {[%emt 00:00:02]} Qh4 {[%clk 00:17:28]} {[%emt 00:00:06]} 19.
Re3 {[%clk 00:20:43]} {[%emt 00:02:16]} Qxf4 {[%clk 00:17:03]} {[%emt
00:00:35]} 20. Rh3 {[%clk 00:20:46]} {[%emt 00:00:06]} Qe5 {[%clk 00:17:05]}
{[%emt 00:00:09]} 21. Qxe5 {[%clk 00:20:31]} {[%emt 00:00:24]} Rxe5 {[%clk
00:17:05]} {[%emt 00:00:09]} 22. Rh4 {[%clk 00:18:47]} {[%emt 00:01:56]} Rae8
{[%clk 00:15:52]} {[%emt 00:01:23]} 23. Nc4 {[%clk 00:17:53]} {[%emt 00:01:04]}
R5e6 {[%clk 00:15:17]} {[%emt 00:00:44]} 24. e5 {[%clk 00:16:42]} {[%emt
00:01:22]} Bxg2 {[%clk 00:14:28]} {[%emt 00:00:59]} 25. Kxg2 {[%clk 00:16:50]}
{[%emt 00:00:03]} d5 {[%clk 00:14:23]} {[%emt 00:00:14]} 26. Ne3 {[%clk
00:16:47]} {[%emt 00:00:14]} Rxe5 {[%clk 00:14:27]} {[%emt 00:00:05]} 27. Ng4
{[%clk 00:16:54]} {[%emt 00:00:04]} Re2+ {[%clk 00:14:14]} {[%emt 00:00:23]} 28.
Kf3 {[%clk 00:16:54]} {[%emt 00:00:09]} Kg7 {[%clk 00:14:16]} {[%emt 00:00:06]}
29. Rc1 {[%clk 00:16:44]} {[%emt 00:00:22]} f5 {[%clk 00:14:23]} {[%emt
00:00:03]} 30. Nf2 {[%clk 00:16:45]} {[%emt 00:00:09]} R8e3+ {[%clk 00:14:17]}
{[%emt 00:00:15]} 31. Kg2 {[%clk 00:16:51]} {[%emt 00:00:05]} Ne4 {[%clk
00:14:17]} {[%emt 00:00:10]} 32. Rf4 {[%clk 00:16:39]} {[%emt 00:00:21]} Kf6
{[%clk 00:14:03]} {[%emt 00:00:24]} 33. h4 {[%clk 00:16:47]} {[%emt 00:00:02]}
g5 {[%clk 00:13:40]} {[%emt 00:00:33]} 0-1

[Event "Vastgota Open 2022"]
[Site "Skara stadshotell, Jarnvagsgatan 5, Skara, Sweden"]
[Date "2022.10.30"]
[Round "9.10"]
[White "Magnussen, Pal"]
[Black "Wengholm, Anders"]
[Result "1-0"]
[TimeControl "30 minutes + 10 seconds per move from move one."]
[WhiteFideId "1711814"]
[BlackFideId "1704818"]
[WhiteElo "1861"]
[BlackElo "2179"]

1. e4 {[%clk 00:30:18]} c5 {[%clk 00:30:20]} {[%emt 00:00:02]} 2. Nf3 {[%clk
00:30:19]} {[%emt 00:00:08]} e6 {[%clk 00:30:28]} {[%emt 00:00:02]} 3. d3
{[%clk 00:30:05]} {[%emt 00:00:24]} Nc6 {[%clk 00:28:16]} {[%emt 00:02:22]} 4.
g3 {[%clk 00:29:27]} {[%emt 00:00:48]} d6 {[%clk 00:27:14]} {[%emt 00:01:12]} 5.
Bg2 {[%clk 00:29:25]} {[%emt 00:00:12]} Nf6 {[%clk 00:27:15]} {[%emt 00:00:10]}
6. O-O {[%clk 00:29:15]} {[%emt 00:00:19]} Be7 {[%clk 00:26:48]} {[%emt
00:00:37]} 7. Re1 {[%clk 00:28:30]} {[%emt 00:00:55]} O-O {[%clk 00:26:37]}
{[%emt 00:00:21]} 8. c3 {[%clk 00:28:24]} {[%emt 00:00:16]} Bd7 {[%clk
00:24:37]} {[%emt 00:02:10]} 9. d4 {[%clk 00:27:53]} {[%emt 00:00:41]} cxd4
{[%clk 00:23:52]} {[%emt 00:00:56]} 10. cxd4 {[%clk 00:28:00]} {[%emt
00:00:03]} d5 {[%clk 00:24:01]} 11. e5 {[%clk 00:26:58]} {[%emt 00:01:11]} Ne4
{[%clk 00:24:09]} {[%emt 00:00:02]} 12. Nbd2 {[%clk 00:26:22]} {[%emt
00:00:46]} Nxd2 {[%clk 00:24:03]} {[%emt 00:00:16]} 13. Bxd2 {[%clk 00:26:10]}
{[%emt 00:00:22]} Qb6 {[%clk 00:24:09]} {[%emt 00:00:04]} 14. Bc3 {[%clk
00:25:13]} {[%emt 00:01:08]} Rac8 {[%clk 00:24:05]} {[%emt 00:00:14]} 15. Qd2
{[%clk 00:23:03]} {[%emt 00:02:19]} Qd8 {[%clk 00:17:41]} {[%emt 00:06:35]} 16.
Bf1 {[%clk 00:21:21]} {[%emt 00:01:51]} a6 {[%clk 00:16:10]} {[%emt 00:01:42]}
17. b4 {[%clk 00:20:34]} {[%emt 00:00:57]} Na7 {[%clk 00:15:04]} {[%emt
00:01:16]} 18. a4 {[%clk 00:20:07]} {[%emt 00:00:37]} Qe8 {[%clk 00:14:04]}
{[%emt 00:01:09]} 19. a5 {[%clk 00:18:10]} {[%emt 00:02:07]} Bb5 {[%clk
00:14:04]} {[%emt 00:00:11]} 20. Bg2 {[%clk 00:15:31]} {[%emt 00:02:49]} Qd7
{[%clk 00:11:04]} {[%emt 00:03:10]} 21. h4 {[%clk 00:15:10]} {[%emt 00:00:30]}
Rc4 {[%clk 00:08:35]} {[%emt 00:02:39]} 22. Bf1 {[%clk 00:14:31]} {[%emt
00:00:49]} Rc7 {[%clk 00:08:39]} {[%emt 00:00:06]} 23. Bh3 {[%clk 00:14:32]}
{[%emt 00:00:09]} Rfc8 {[%clk 00:07:52]} {[%emt 00:00:57]} 24. Rec1 {[%clk
00:11:37]} {[%emt 00:03:05]} Rc4 {[%clk 00:07:00]} {[%emt 00:01:03]} 25. Bf1
{[%clk 00:10:13]} {[%emt 00:01:34]} R4c6 {[%clk 00:07:06]} {[%emt 00:00:04]} 26.
Bh3 {[%clk 00:08:45]} {[%emt 00:01:38]} R8c7 {[%clk 00:06:50]} {[%emt
00:00:26]} 27. Bb2 {[%clk 00:07:51]} {[%emt 00:01:03]} Qc8 {[%clk 00:02:50]}
{[%emt 00:04:10]} 28. Rc5 {[%clk 00:06:10]} {[%emt 00:01:51]} Qe8 {[%clk
00:01:18]} {[%emt 00:01:43]} 29. Kg2 {[%clk 00:05:13]} {[%emt 00:01:07]} Rc8
{[%clk 00:01:25]} {[%emt 00:00:03]} 30. Rxc6 {[%clk 00:03:51]} {[%emt
00:01:32]} Rxc6 {[%clk 00:01:21]} {[%emt 00:00:13]} 31. Rc1 {[%clk 00:02:47]}
{[%emt 00:01:15]} Rxc1 {[%clk 00:00:22]} {[%emt 00:01:10]} 32. Bxc1 {[%clk
00:02:52]} {[%emt 00:00:05]} Qc6 {[%clk 00:00:28]} {[%emt 00:00:04]} 33. Ba3
{[%clk 00:02:10]} {[%emt 00:00:51]} Qc4 {[%clk 00:00:36]} {[%emt 00:00:02]} 34.
Kh2 {[%clk 00:01:54]} {[%emt 00:00:26]} Nc6 {[%clk 00:00:42]} {[%emt 00:00:05]}
35. Qf4 {[%clk 00:01:01]} {[%emt 00:01:02]} 1-0